[Event "January 9 Early 2024"]
[Site "https://www.chess.com"]
[Date "2024.01.11"]
[Round "8"]
[White "Erzhanov, Arman"]
[Black "Javakhadze, Zurab"]
[Result "1-0"]
[Board "91"]
[TimeControl "180+1"]
[WhiteFideId "4138821"]
[BlackFideId "13603647"]
[WhiteElo "2548"]
[BlackElo "2678"]
[WhiteTeam "KAZ"]
[BlackTeam "GEO"]
[WhiteClock "0:00:44"]
[BlackClock "0:00:01"]

1. e4 {[%clk 0:02:59]}  c5 {[%clk 0:03:00]} 2. Nf3 {[%clk 0:02:59]}  d6 {[%clk 0:03:00]} 3. d4 {[%clk 0:02:59]}  cxd4 {[%clk 0:03:01]} 4. Qxd4 {[%clk 0:03:00]}  Nf6 {[%clk 0:03:02]} 5. Be2 {[%clk 0:02:59]}  a6 {[%clk 0:03:02]} 6. h3 {[%clk 0:02:59]}  Nc6 {[%clk 0:03:03]} 7. Qe3 {[%clk 0:03:00]}  g6 {[%clk 0:03:02]} 8. O-O {[%clk 0:03:00]}  Bg7 {[%clk 0:03:03]} 9. Rd1 {[%clk 0:03:01]}  Qc7 {[%clk 0:03:03]} 10. c4 {[%clk 0:03:00]}  O-O {[%clk 0:03:03]} 11. Nc3 {[%clk 0:03:01]}  Be6 {[%clk 0:02:59]} 12. Rb1 {[%clk 0:03:01]}  Rfc8 {[%clk 0:02:58]} 13. b3 {[%clk 0:03:01]}  Nd7 {[%clk 0:02:29]} 14. Bb2 {[%clk 0:02:54]}  Qb6 {[%clk 0:02:30]} 15. Qd2 {[%clk 0:02:41]}  Nc5 {[%clk 0:02:28]} 16. Ng5 {[%clk 0:02:33]}  Bd7 {[%clk 0:02:16]} 17. Nd5 {[%clk 0:02:32]}  Qd8 {[%clk 0:02:16]} 18. Bxg7 {[%clk 0:02:32]}  Kxg7 {[%clk 0:02:17]} 19. Qf4 {[%clk 0:02:23]}  f6 {[%clk 0:02:16]} 20. Nf3 {[%clk 0:02:19]}  Ne5 {[%clk 0:02:06]} 21. Nxe5 {[%clk 0:02:15]}  fxe5 {[%clk 0:01:59]} 22. Qh4 {[%clk 0:02:14]}  e6 {[%clk 0:01:35]} 23. Qxd8 {[%clk 0:02:13]}  Rxd8 {[%clk 0:01:36]} 24. Nb6 {[%clk 0:02:13]}  Rab8 {[%clk 0:01:34]} 25. Rxd6 {[%clk 0:02:13]}  Bc6 {[%clk 0:01:33]} 26. Rbd1 {[%clk 0:01:50]}  Rxd6 {[%clk 0:01:31]} 27. Rxd6 {[%clk 0:01:51]}  Nxe4 {[%clk 0:01:22]} 28. Rxe6 {[%clk 0:01:44]}  Rd8 {[%clk 0:01:14]} 29. Rxe5 {[%clk 0:01:37]}  Kf6 {[%clk 0:01:11]} 30. f4 {[%clk 0:01:29]}  Nc3 {[%clk 0:01:11]} 31. Bf3 {[%clk 0:01:12]}  Bxf3 {[%clk 0:00:44]} 32. gxf3 {[%clk 0:01:12]}  Rd1+ {[%clk 0:00:34]} 33. Kf2 {[%clk 0:01:13]}  Rd2+ {[%clk 0:00:35]} 34. Ke3 {[%clk 0:01:13]}  Rxa2 {[%clk 0:00:28]} 35. Kd3 {[%clk 0:01:00]}  Nd1 {[%clk 0:00:22]} 36. Nd5+ {[%clk 0:01:00]}  Kf7 {[%clk 0:00:13]} 37. Re7+ {[%clk 0:01:00]}  Kf8 {[%clk 0:00:12]} 38. Rxb7 {[%clk 0:01:00]}  Nf2+ {[%clk 0:00:08]} 39. Kd4 {[%clk 0:00:59]}  h5 {[%clk 0:00:04]} 40. c5 {[%clk 0:00:55]}  Rc2 {[%clk 0:00:02]} 41. Nc3 {[%clk 0:00:52]}  Nxh3 {[%clk 0:00:01]} 42. Kd3 {[%clk 0:00:44]} 1-0

[Event "January 9 Early 2024"]
[Site "https://www.chess.com"]
[Date "2024.01.11"]
[Round "8"]
[White "Poddubnyi, Viktor"]
[Black "Goltseva, Ekaterina"]
[Result "0-1"]
[Board "93"]
[TimeControl "180+1"]
[WhiteFideId "4141989"]
[BlackFideId "24173770"]
[WhiteElo "2425"]
[BlackElo "2591"]
[WhiteTeam "RUS"]
[BlackTeam "RUS"]
[WhiteClock "0:00:04"]
[BlackClock "0:00:19"]

1. e4 {[%clk 0:03:00]}  c5 {[%clk 0:02:57]} 2. Nf3 {[%clk 0:03:00]}  Nf6 {[%clk 0:02:48]} 3. e5 {[%clk 0:03:00]}  Nd5 {[%clk 0:02:48]} 4. d4 {[%clk 0:03:00]}  cxd4 {[%clk 0:02:47]} 5. Qxd4 {[%clk 0:03:01]}  e6 {[%clk 0:02:45]} 6. Bc4 {[%clk 0:03:01]}  d6 {[%clk 0:02:45]} 7. Bxd5 {[%clk 0:02:36]}  exd5 {[%clk 0:02:43]} 8. exd6 {[%clk 0:02:28]}  Be6 {[%clk 0:02:40]} 9. Ng5 {[%clk 0:01:56]}  Nc6 {[%clk 0:02:34]} 10. Qe3 {[%clk 0:01:56]}  Qd7 {[%clk 0:01:53]} 11. O-O {[%clk 0:01:46]}  Bxd6 {[%clk 0:01:45]} 12. Nxe6 {[%clk 0:01:17]}  Qxe6 {[%clk 0:01:27]} 13. Qb3 {[%clk 0:00:57]}  O-O-O {[%clk 0:01:19]} 14. Nc3 {[%clk 0:00:40]}  Qe5 {[%clk 0:00:54]} 15. g3 {[%clk 0:00:37]}  Nd4 {[%clk 0:00:53]} 16. Qa4 {[%clk 0:00:32]}  Nc6 {[%clk 0:00:42]} 17. Bf4 {[%clk 0:00:31]}  Qf6 {[%clk 0:00:37]} 18. Bxd6 {[%clk 0:00:28]}  Qxd6 {[%clk 0:00:38]} 19. Rad1 {[%clk 0:00:26]}  d4 {[%clk 0:00:38]} 20. Nb5 {[%clk 0:00:22]}  Qc5 {[%clk 0:00:37]} 21. c3 {[%clk 0:00:17]}  d3 {[%clk 0:00:34]} 22. b4 {[%clk 0:00:14]}  Qb6 {[%clk 0:00:34]} 23. Na3 {[%clk 0:00:08]}  Kb8 {[%clk 0:00:26]} 24. Nc4 {[%clk 0:00:08]}  Qc7 {[%clk 0:00:26]} 25. b5 {[%clk 0:00:07]}  Ne5 {[%clk 0:00:22]} 26. Nxe5 {[%clk 0:00:05]}  Qxe5 {[%clk 0:00:23]} 27. Rfe1 {[%clk 0:00:04]}  Qxc3 {[%clk 0:00:23]} 28. Qf4+ {[%clk 0:00:04]}  Ka8 {[%clk 0:00:21]} 29. Qxf7 {[%clk 0:00:04]}  d2 {[%clk 0:00:19]} 0-1

[Event "January 9 Early 2024"]
[Site "https://www.chess.com"]
[Date "2024.01.11"]
[Round "8"]
[White "Buchenau, Frank"]
[Black "Khamdamova, Afruza"]
[Result "0-1"]
[Board "94"]
[TimeControl "180+1"]
[WhiteFideId "4604350"]
[BlackFideId "14210444"]
[WhiteElo "2398"]
[BlackElo "2522"]
[WhiteTeam "GER"]
[BlackTeam "UZB"]
[WhiteClock "0:00:12"]
[BlackClock "0:00:33"]

1. e4 {[%clk 0:02:48]}  e5 {[%clk 0:02:58]} 2. Bc4 {[%clk 0:02:47]}  Nf6 {[%clk 0:02:57]} 3. d3 {[%clk 0:02:46]}  Nc6 {[%clk 0:02:57]} 4. Nf3 {[%clk 0:02:46]}  Bc5 {[%clk 0:02:57]} 5. O-O {[%clk 0:02:45]}  d6 {[%clk 0:02:53]} 6. c3 {[%clk 0:02:45]}  a5 {[%clk 0:02:50]} 7. Nbd2 {[%clk 0:02:40]}  O-O {[%clk 0:02:46]} 8. h3 {[%clk 0:02:26]}  h6 {[%clk 0:02:46]} 9. Re1 {[%clk 0:02:25]}  Be6 {[%clk 0:02:45]} 10. Bb5 {[%clk 0:02:23]}  Qb8 {[%clk 0:02:42]} 11. Nf1 {[%clk 0:02:21]}  Qa7 {[%clk 0:02:35]} 12. Be3 {[%clk 0:02:17]}  Bxe3 {[%clk 0:02:32]} 13. Nxe3 {[%clk 0:02:17]}  Ne7 {[%clk 0:02:31]} 14. d4 {[%clk 0:02:09]}  c6 {[%clk 0:02:26]} 15. Bd3 {[%clk 0:02:06]}  Ng6 {[%clk 0:02:23]} 16. a4 {[%clk 0:01:57]}  Rad8 {[%clk 0:02:15]} 17. Qc2 {[%clk 0:01:55]}  Rfe8 {[%clk 0:02:06]} 18. dxe5 {[%clk 0:01:51]}  dxe5 {[%clk 0:02:05]} 19. Bc4 {[%clk 0:01:49]}  Qc5 {[%clk 0:01:52]} 20. Bxe6 {[%clk 0:01:47]}  Rxe6 {[%clk 0:01:51]} 21. Rad1 {[%clk 0:01:40]}  Red6 {[%clk 0:01:47]} 22. Rxd6 {[%clk 0:01:35]}  Rxd6 {[%clk 0:01:46]} 23. Nf5 {[%clk 0:01:29]}  Rd7 {[%clk 0:01:36]} 24. g3 {[%clk 0:01:11]}  Ne7 {[%clk 0:01:14]} 25. N3h4 {[%clk 0:01:06]}  Nxf5 {[%clk 0:01:06]} 26. Nxf5 {[%clk 0:01:05]}  Kh7 {[%clk 0:01:04]} 27. Kg2 {[%clk 0:01:01]}  Qc4 {[%clk 0:00:58]} 28. Ne3 {[%clk 0:00:50]}  Qxe4+ {[%clk 0:00:45]} 29. Qxe4+ {[%clk 0:00:50]}  Nxe4 {[%clk 0:00:45]} 30. Nc4 {[%clk 0:00:47]}  f5 {[%clk 0:00:41]} 31. f3 {[%clk 0:00:33]}  Nc5 {[%clk 0:00:39]} 32. Rxe5 {[%clk 0:00:30]}  Nxa4 {[%clk 0:00:38]} 33. Rxf5 {[%clk 0:00:14]}  b5 {[%clk 0:00:37]} 34. Nxa5 {[%clk 0:00:13]}  Rd2+ {[%clk 0:00:35]} 35. Kf1 {[%clk 0:00:13]}  Rxb2 {[%clk 0:00:33]} 36. Rc5 {[%clk 0:00:12]}  Nxc5 {[%clk 0:00:33]} 0-1

[Event "January 9 Early 2024"]
[Site "https://www.chess.com"]
[Date "2024.01.11"]
[Round "8"]
[White "Subramanian, Anusha"]
[Black "Zhukov, Maksim"]
[Result "1/2-1/2"]
[Board "96"]
[TimeControl "180+1"]
[WhiteFideId "477710"]
[BlackFideId "34181790"]
[WhiteElo "2102"]
[BlackElo "2311"]
[WhiteTeam "ENG"]
[BlackTeam "RUS"]
[WhiteClock "0:00:21"]
[BlackClock "0:00:06"]

1. e4 {[%clk 0:03:00]}  c5 {[%clk 0:02:58]} 2. Nf3 {[%clk 0:03:00]}  e6 {[%clk 0:02:58]} 3. d4 {[%clk 0:03:01]}  cxd4 {[%clk 0:02:59]} 4. Nxd4 {[%clk 0:03:02]}  a6 {[%clk 0:03:00]} 5. Nc3 {[%clk 0:03:01]}  b5 {[%clk 0:03:00]} 6. Be3 {[%clk 0:02:59]}  Bb7 {[%clk 0:03:00]} 7. f3 {[%clk 0:02:59]}  Qc7 {[%clk 0:03:00]} 8. Qd2 {[%clk 0:02:59]}  Nf6 {[%clk 0:03:01]} 9. g4 {[%clk 0:02:58]}  d5 {[%clk 0:02:59]} 10. g5 {[%clk 0:02:24]}  Nfd7 {[%clk 0:02:58]} 11. Bf4 {[%clk 0:02:18]}  e5 {[%clk 0:02:53]} 12. Ndxb5 {[%clk 0:02:07]}  axb5 {[%clk 0:02:52]} 13. Nxb5 {[%clk 0:02:07]}  Qb6 {[%clk 0:02:46]} 14. Bg3 {[%clk 0:02:00]}  Bc5 {[%clk 0:02:32]} 15. exd5 {[%clk 0:01:45]}  O-O {[%clk 0:02:29]} 16. Bd3 {[%clk 0:01:36]}  Ba6 {[%clk 0:02:05]} 17. a4 {[%clk 0:01:33]}  Bxb5 {[%clk 0:02:04]} 18. Bxb5 {[%clk 0:01:34]}  Qxb5 {[%clk 0:02:02]} 19. axb5 {[%clk 0:01:31]}  Rxa1+ {[%clk 0:02:01]} 20. Ke2 {[%clk 0:01:31]}  Rxh1 {[%clk 0:02:01]} 21. b4 {[%clk 0:01:23]}  Bb6 {[%clk 0:01:58]} 22. Qc3 {[%clk 0:01:19]}  Rg1 {[%clk 0:01:51]} 23. Bxe5 {[%clk 0:01:07]}  Re8 {[%clk 0:01:39]} 24. f4 {[%clk 0:01:04]}  Nxe5 {[%clk 0:00:23]} 25. fxe5 {[%clk 0:01:05]}  Rxg5 {[%clk 0:00:22]} 26. e6 {[%clk 0:00:48]}  fxe6 {[%clk 0:00:22]} 27. d6 {[%clk 0:00:47]}  Rd5 {[%clk 0:00:17]} 28. Qg3 {[%clk 0:00:32]}  Rf8 {[%clk 0:00:13]} 29. c4 {[%clk 0:00:30]}  Rf2+ {[%clk 0:00:12]} 30. Ke1 {[%clk 0:00:21]}  Rdd2 {[%clk 0:00:08]} 31. c5 {[%clk 0:00:20]}  Rde2+ {[%clk 0:00:07]} 32. Kd1 {[%clk 0:00:20]}  Rd2+ {[%clk 0:00:07]} 33. Ke1 {[%clk 0:00:20]}  Rde2+ {[%clk 0:00:06]} 34. Kd1 {[%clk 0:00:20]}  Rd2+ {[%clk 0:00:06]} 35. Ke1 {[%clk 0:00:21]} 1/2-1/2

[Event "January 9 Early 2024"]
[Site "https://www.chess.com"]
[Date "2024.01.11"]
[Round "8"]
[White "Bartel, Mateusz"]
[Black "Vestby-Ellingsen, Mads"]
[Result "1-0"]
[Board "99"]
[TimeControl "180+1"]
[WhiteFideId "1112635"]
[BlackFideId "1520857"]
[WhiteElo "2834"]
[BlackElo "2640"]
[WhiteTeam "POL"]
[BlackTeam "NOR"]
[WhiteClock "0:00:13"]
[BlackClock "0:00:03"]

1. Nf3 {[%clk 0:03:00]}  d5 {[%clk 0:02:59]} 2. c4 {[%clk 0:02:59]}  d4 {[%clk 0:02:59]} 3. b4 {[%clk 0:02:59]}  c5 {[%clk 0:02:58]} 4. e3 {[%clk 0:02:58]}  Nf6 {[%clk 0:02:59]} 5. exd4 {[%clk 0:02:43]}  cxd4 {[%clk 0:02:58]} 6. d3 {[%clk 0:02:44]}  e5 {[%clk 0:02:51]} 7. a3 {[%clk 0:02:40]}  Qc7 {[%clk 0:02:45]} 8. Nbd2 {[%clk 0:02:35]}  a5 {[%clk 0:02:39]} 9. Rb1 {[%clk 0:02:14]}  axb4 {[%clk 0:02:33]} 10. axb4 {[%clk 0:02:14]}  Be7 {[%clk 0:02:22]} 11. Be2 {[%clk 0:02:09]}  O-O {[%clk 0:02:20]} 12. O-O {[%clk 0:02:10]}  h6 {[%clk 0:02:11]} 13. Re1 {[%clk 0:02:06]}  Bf5 {[%clk 0:02:08]} 14. Bf1 {[%clk 0:02:05]}  Nbd7 {[%clk 0:01:50]} 15. Nxd4 {[%clk 0:01:58]}  Bh7 {[%clk 0:01:39]} 16. Nb5 {[%clk 0:01:54]}  Qd8 {[%clk 0:01:33]} 17. c5 {[%clk 0:01:39]}  Nb8 {[%clk 0:01:19]} 18. Nc4 {[%clk 0:01:31]}  e4 {[%clk 0:01:16]} 19. Nbd6 {[%clk 0:01:17]}  exd3 {[%clk 0:01:11]} 20. Bxd3 {[%clk 0:01:16]}  Bxd3 {[%clk 0:01:10]} 21. Qxd3 {[%clk 0:01:17]}  Nc6 {[%clk 0:01:06]} 22. Qg3 {[%clk 0:00:53]}  Bxd6 {[%clk 0:00:57]} 23. Nxd6 {[%clk 0:00:49]}  Kh7 {[%clk 0:00:53]} 24. Bb2 {[%clk 0:00:33]}  Ne7 {[%clk 0:00:21]} 25. Bxf6 {[%clk 0:00:30]}  gxf6 {[%clk 0:00:22]} 26. Nxb7 {[%clk 0:00:29]}  Qd7 {[%clk 0:00:21]} 27. Nd6 {[%clk 0:00:29]}  Ng6 {[%clk 0:00:21]} 28. Qf3 {[%clk 0:00:24]}  Rg8 {[%clk 0:00:18]} 29. Qxf6 {[%clk 0:00:24]}  Qg4 {[%clk 0:00:18]} 30. g3 {[%clk 0:00:18]}  Nh4 {[%clk 0:00:15]} 31. Re4 {[%clk 0:00:17]}  Nf3+ {[%clk 0:00:11]} 32. Kg2 {[%clk 0:00:14]}  Nh4+ {[%clk 0:00:03]} 33. Qxh4 {[%clk 0:00:13]}  Qf5 {[%clk 0:00:03]} 1-0

[Event "January 9 Early 2024"]
[Site "https://www.chess.com"]
[Date "2024.01.11"]
[Round "8"]
[White "Gopal, K.N."]
[Black "Huschenbeth, Niclas"]
[Result "0-1"]
[Board "102"]
[TimeControl "180+1"]
[WhiteFideId "5001447"]
[BlackFideId "24604747"]
[WhiteElo "2250"]
[BlackElo "2473"]
[WhiteTeam "IND"]
[BlackTeam "GER"]
[WhiteClock "0:00:07"]
[BlackClock "0:00:23"]

1. e4 {[%clk 0:03:00]}  c5 {[%clk 0:02:59]} 2. Nf3 {[%clk 0:02:55]}  d6 {[%clk 0:02:59]} 3. b3 {[%clk 0:02:53]}  Nf6 {[%clk 0:02:58]} 4. d3 {[%clk 0:02:51]}  g6 {[%clk 0:02:57]} 5. Bb2 {[%clk 0:02:51]}  Bg7 {[%clk 0:02:58]} 6. Nbd2 {[%clk 0:02:51]}  O-O {[%clk 0:02:58]} 7. Be2 {[%clk 0:02:50]}  Nc6 {[%clk 0:02:58]} 8. O-O {[%clk 0:02:49]}  e5 {[%clk 0:02:56]} 9. c4 {[%clk 0:02:43]}  Nh5 {[%clk 0:02:54]} 10. g3 {[%clk 0:02:30]}  f5 {[%clk 0:02:25]} 11. Nh4 {[%clk 0:02:25]}  Nf4 {[%clk 0:02:19]} 12. exf5 {[%clk 0:02:18]}  gxf5 {[%clk 0:02:12]} 13. Rb1 {[%clk 0:01:47]}  Nd4 {[%clk 0:01:40]} 14. Bxd4 {[%clk 0:01:44]}  cxd4 {[%clk 0:01:41]} 15. Bf3 {[%clk 0:01:42]}  Nxd3 {[%clk 0:01:32]} 16. Bd5+ {[%clk 0:01:38]}  Kh8 {[%clk 0:01:32]} 17. Qh5 {[%clk 0:01:36]}  Qe8 {[%clk 0:01:29]} 18. Qe2 {[%clk 0:01:28]}  e4 {[%clk 0:01:25]} 19. f3 {[%clk 0:01:19]}  Qh5 {[%clk 0:01:06]} 20. Ng2 {[%clk 0:01:03]}  Bd7 {[%clk 0:00:58]} 21. g4 {[%clk 0:01:02]}  fxg4 {[%clk 0:00:55]} 22. fxe4 {[%clk 0:01:02]}  Ne5 {[%clk 0:00:52]} 23. Bxb7 {[%clk 0:00:48]}  Nf3+ {[%clk 0:00:40]} 24. Nxf3 {[%clk 0:00:37]}  gxf3 {[%clk 0:00:40]} 25. Qd1 {[%clk 0:00:32]}  Rab8 {[%clk 0:00:33]} 26. Bd5 {[%clk 0:00:27]}  Qg4 {[%clk 0:00:32]} 27. Rf2 {[%clk 0:00:21]}  fxg2 {[%clk 0:00:27]} 28. Qxg4 {[%clk 0:00:17]}  Bxg4 {[%clk 0:00:27]} 29. Kxg2 {[%clk 0:00:17]}  Rxf2+ {[%clk 0:00:24]} 30. Kxf2 {[%clk 0:00:18]}  Rf8+ {[%clk 0:00:24]} 31. Kg3 {[%clk 0:00:18]}  Be2 {[%clk 0:00:23]} 32. e5 {[%clk 0:00:14]}  Bxe5+ {[%clk 0:00:23]} 33. Kg2 {[%clk 0:00:13]}  d3 {[%clk 0:00:24]} 34. Re1 {[%clk 0:00:07]}  d2 {[%clk 0:00:23]} 0-1

[Event "January 9 Early 2024"]
[Site "https://www.chess.com"]
[Date "2024.01.11"]
[Round "8"]
[White "Chan, Wei Xuan Timothy"]
[Black "Fernandez Garcia, Gumersindo"]
[Result "1-0"]
[Board "109"]
[TimeControl "180+1"]
[WhiteFideId "5802032"]
[BlackFideId "24516740"]
[WhiteElo "2728"]
[BlackElo "2398"]
[WhiteTeam "SGP"]
[BlackTeam "ESP"]
[WhiteClock "0:00:26"]
[BlackClock "0:00:04"]

1. e4 {[%clk 0:03:00]}  c5 {[%clk 0:02:59]} 2. Nf3 {[%clk 0:03:00]}  e6 {[%clk 0:02:59]} 3. b3 {[%clk 0:03:00]}  b6 {[%clk 0:02:50]} 4. Bb2 {[%clk 0:02:58]}  Bb7 {[%clk 0:02:51]} 5. Qe2 {[%clk 0:02:59]}  Nf6 {[%clk 0:02:46]} 6. e5 {[%clk 0:02:58]}  Nd5 {[%clk 0:02:46]} 7. g3 {[%clk 0:02:58]}  Nc6 {[%clk 0:02:44]} 8. Bg2 {[%clk 0:02:57]}  Be7 {[%clk 0:02:44]} 9. O-O {[%clk 0:02:56]}  h5 {[%clk 0:02:43]} 10. c4 {[%clk 0:02:52]}  Ndb4 {[%clk 0:02:40]} 11. h4 {[%clk 0:02:52]}  Nc2 {[%clk 0:02:39]} 12. Nc3 {[%clk 0:02:48]}  Nxa1 {[%clk 0:02:39]} 13. Bxa1 {[%clk 0:02:49]}  Qc7 {[%clk 0:02:36]} 14. Nb5 {[%clk 0:02:48]}  Qb8 {[%clk 0:02:35]} 15. Ng5 {[%clk 0:02:36]}  a6 {[%clk 0:02:31]} 16. Nd6+ {[%clk 0:02:31]}  Bxd6 {[%clk 0:02:23]} 17. exd6 {[%clk 0:02:32]}  Nd4 {[%clk 0:02:07]} 18. Bxd4 {[%clk 0:02:03]}  cxd4 {[%clk 0:01:48]} 19. Qe5 {[%clk 0:02:01]}  f6 {[%clk 0:01:41]} 20. Qxd4 {[%clk 0:01:59]}  Bxg2 {[%clk 0:01:35]} 21. Kxg2 {[%clk 0:01:57]}  Qb7+ {[%clk 0:01:08]} 22. Nf3 {[%clk 0:01:56]}  O-O-O {[%clk 0:01:01]} 23. Qd3 {[%clk 0:01:02]}  g5 {[%clk 0:00:57]} 24. Kg1 {[%clk 0:01:02]}  e5 {[%clk 0:00:50]} 25. Re1 {[%clk 0:00:56]}  Rde8 {[%clk 0:00:46]} 26. hxg5 {[%clk 0:00:54]}  e4 {[%clk 0:00:42]} 27. Qe3 {[%clk 0:00:51]}  fxg5 {[%clk 0:00:26]} 28. Nxg5 {[%clk 0:00:50]}  h4 {[%clk 0:00:24]} 29. g4 {[%clk 0:00:39]}  Kb8 {[%clk 0:00:20]} 30. Nxe4 {[%clk 0:00:30]}  Qc6 {[%clk 0:00:17]} 31. f3 {[%clk 0:00:29]}  h3 {[%clk 0:00:15]} 32. Kh2 {[%clk 0:00:28]}  Kb7 {[%clk 0:00:14]} 33. d4 {[%clk 0:00:28]}  Ref8 {[%clk 0:00:08]} 34. d5 {[%clk 0:00:28]}  Qc8 {[%clk 0:00:08]} 35. a4 {[%clk 0:00:28]}  Qd8 {[%clk 0:00:08]} 36. a5 {[%clk 0:00:28]}  bxa5 {[%clk 0:00:07]} 37. Nc5+ {[%clk 0:00:28]}  Kb8 {[%clk 0:00:07]} 38. Nxa6+ {[%clk 0:00:28]}  Kb7 {[%clk 0:00:08]} 39. Nc5+ {[%clk 0:00:29]}  Kb8 {[%clk 0:00:08]} 40. b4 {[%clk 0:00:29]}  a4 {[%clk 0:00:06]} 41. Ra1 {[%clk 0:00:29]}  Qf6 {[%clk 0:00:05]} 42. Nxd7+ {[%clk 0:00:26]}  Kb7 {[%clk 0:00:04]} 43. Nxf6 {[%clk 0:00:26]} 1-0

[Event "January 9 Early 2024"]
[Site "https://www.chess.com"]
[Date "2024.01.11"]
[Round "8"]
[White "Filippova, Margarita"]
[Black "Petersson, Kjell"]
[Result "1-0"]
[Board "110"]
[TimeControl "180+1"]
[WhiteFideId "34199680"]
[BlackFideId "1705148"]
[WhiteElo "2345"]
[BlackElo "2133"]
[WhiteTeam "RUS"]
[BlackTeam "SWE"]
[WhiteClock "0:00:51"]
[BlackClock "0:00:16"]

1. e4 {[%clk 0:03:00]}  c5 {[%clk 0:02:59]} 2. Nf3 {[%clk 0:02:43]}  d6 {[%clk 0:02:59]} 3. d4 {[%clk 0:02:41]}  cxd4 {[%clk 0:03:00]} 4. Qxd4 {[%clk 0:02:42]}  Nc6 {[%clk 0:02:59]} 5. Bb5 {[%clk 0:02:41]}  Bd7 {[%clk 0:02:59]} 6. Bxc6 {[%clk 0:02:41]}  Bxc6 {[%clk 0:03:00]} 7. Nc3 {[%clk 0:02:42]}  Nf6 {[%clk 0:03:00]} 8. Bg5 {[%clk 0:02:42]}  e6 {[%clk 0:03:00]} 9. O-O-O {[%clk 0:02:40]}  Be7 {[%clk 0:03:00]} 10. Qd3 {[%clk 0:02:41]}  O-O {[%clk 0:02:59]} 11. Nd4 {[%clk 0:02:41]}  Rc8 {[%clk 0:02:49]} 12. f4 {[%clk 0:02:35]}  Qa5 {[%clk 0:02:44]} 13. Kb1 {[%clk 0:02:33]}  a6 {[%clk 0:02:32]} 14. f5 {[%clk 0:02:29]}  e5 {[%clk 0:02:23]} 15. Nb3 {[%clk 0:02:27]}  Qc7 {[%clk 0:02:13]} 16. Bxf6 {[%clk 0:02:13]}  Bxf6 {[%clk 0:02:13]} 17. g4 {[%clk 0:02:09]}  b5 {[%clk 0:02:07]} 18. h4 {[%clk 0:02:04]}  a5 {[%clk 0:02:03]} 19. g5 {[%clk 0:01:53]}  Bd8 {[%clk 0:02:00]} 20. Rh2 {[%clk 0:01:48]}  a4 {[%clk 0:01:59]} 21. Nc1 {[%clk 0:01:46]}  b4 {[%clk 0:01:58]} 22. Nd5 {[%clk 0:01:45]}  Bxd5 {[%clk 0:01:53]} 23. Qxd5 {[%clk 0:01:46]}  Qc5 {[%clk 0:01:37]} 24. Qxd6 {[%clk 0:01:35]}  Bb6 {[%clk 0:01:24]} 25. Qxc5 {[%clk 0:01:31]}  Rxc5 {[%clk 0:01:10]} 26. Rhd2 {[%clk 0:01:30]}  Rc4 {[%clk 0:01:03]} 27. Re2 {[%clk 0:01:27]}  Bd4 {[%clk 0:00:59]} 28. b3 {[%clk 0:01:23]}  Rc6 {[%clk 0:00:56]} 29. bxa4 {[%clk 0:01:20]}  Ra8 {[%clk 0:00:55]} 30. Nb3 {[%clk 0:01:21]}  Bc3 {[%clk 0:00:53]} 31. a5 {[%clk 0:01:20]}  h6 {[%clk 0:00:49]} 32. Re3 {[%clk 0:01:19]}  Kf8 {[%clk 0:00:45]} 33. Red3 {[%clk 0:01:15]}  hxg5 {[%clk 0:00:42]} 34. hxg5 {[%clk 0:01:15]}  Rc7 {[%clk 0:00:39]} 35. Rd7 {[%clk 0:01:15]}  Rxd7 {[%clk 0:00:38]} 36. Rxd7 {[%clk 0:01:15]}  Ke8 {[%clk 0:00:39]} 37. Rd5 {[%clk 0:01:15]}  Ke7 {[%clk 0:00:38]} 38. Kc1 {[%clk 0:01:09]}  Ra6 {[%clk 0:00:37]} 39. Kd1 {[%clk 0:01:09]}  Ra8 {[%clk 0:00:37]} 40. Ke2 {[%clk 0:01:09]}  Rh8 {[%clk 0:00:37]} 41. a6 {[%clk 0:01:09]}  Rh2+ {[%clk 0:00:34]} 42. Kd3 {[%clk 0:01:08]}  Rd2+ {[%clk 0:00:34]} 43. Kc4 {[%clk 0:01:08]}  Rxc2 {[%clk 0:00:34]} 44. Kb5 {[%clk 0:01:06]}  Rxa2 {[%clk 0:00:33]} 45. Kb6 {[%clk 0:01:01]}  Bd4+ {[%clk 0:00:33]} 46. Nxd4 {[%clk 0:01:01]}  exd4 {[%clk 0:00:34]} 47. Rxd4 {[%clk 0:01:02]}  b3 {[%clk 0:00:34]} 48. Rb4 {[%clk 0:01:01]}  b2 {[%clk 0:00:34]} 49. e5 {[%clk 0:00:54]}  Kd7 {[%clk 0:00:34]} 50. Kb7 {[%clk 0:00:54]}  Ra4 {[%clk 0:00:19]} 51. Rxb2 {[%clk 0:00:49]}  Ra5 {[%clk 0:00:17]} 52. a7 {[%clk 0:00:49]}  f6 {[%clk 0:00:16]} 53. Rd2+ {[%clk 0:00:48]}  Ke7 {[%clk 0:00:16]} 54. gxf6+ {[%clk 0:00:48]}  gxf6 {[%clk 0:00:16]} 55. exf6+ {[%clk 0:00:49]}  Kf7 {[%clk 0:00:16]} 56. a8=Q {[%clk 0:00:50]}  Rxa8 {[%clk 0:00:16]} 57. Kxa8 {[%clk 0:00:51]} 1-0

[Event "January 9 Early 2024"]
[Site "https://www.chess.com"]
[Date "2024.01.11"]
[Round "8"]
[White "Bazilius, Augustinas"]
[Black "Bueno, Alfeu Junior Varela"]
[Result "0-1"]
[Board "112"]
[TimeControl "180+1"]
[WhiteFideId "12832251"]
[BlackFideId "2108879"]
[WhiteElo "2510"]
[BlackElo "2417"]
[WhiteTeam "LTU"]
[BlackTeam "BRA"]
[WhiteClock "0:00:01"]
[BlackClock "0:00:03"]

1. e4 {[%clk 0:02:54]}  e6 {[%clk 0:02:55]} 2. Nf3 {[%clk 0:02:44]}  d5 {[%clk 0:02:56]} 3. e5 {[%clk 0:02:44]}  c5 {[%clk 0:02:56]} 4. d4 {[%clk 0:02:44]}  cxd4 {[%clk 0:02:55]} 5. Nxd4 {[%clk 0:02:40]}  Nc6 {[%clk 0:02:55]} 6. Nxc6 {[%clk 0:02:38]}  bxc6 {[%clk 0:02:56]} 7. Be2 {[%clk 0:02:36]}  Ba6 {[%clk 0:02:55]} 8. O-O {[%clk 0:02:26]}  Bxe2 {[%clk 0:02:52]} 9. Qxe2 {[%clk 0:02:27]}  Bc5 {[%clk 0:02:48]} 10. Be3 {[%clk 0:02:14]}  Bxe3 {[%clk 0:02:45]} 11. Qxe3 {[%clk 0:02:13]}  Ne7 {[%clk 0:02:44]} 12. b4 {[%clk 0:02:01]}  O-O {[%clk 0:02:41]} 13. a3 {[%clk 0:02:00]}  Nf5 {[%clk 0:02:28]} 14. Qe2 {[%clk 0:01:48]}  a5 {[%clk 0:02:21]} 15. Nd2 {[%clk 0:01:45]}  Qb6 {[%clk 0:02:05]} 16. c3 {[%clk 0:01:38]}  c5 {[%clk 0:02:01]} 17. Rab1 {[%clk 0:01:17]}  axb4 {[%clk 0:01:55]} 18. axb4 {[%clk 0:01:18]}  Ra2 {[%clk 0:01:55]} 19. Ra1 {[%clk 0:01:10]}  Rfa8 {[%clk 0:01:15]} 20. bxc5 {[%clk 0:00:54]}  Qxc5 {[%clk 0:01:07]} 21. Rxa2 {[%clk 0:00:53]}  Rxa2 {[%clk 0:01:08]} 22. Qd3 {[%clk 0:00:52]}  Ra3 {[%clk 0:00:52]} 23. Rb1 {[%clk 0:00:37]}  g6 {[%clk 0:00:34]} 24. g4 {[%clk 0:00:34]}  Rxc3 {[%clk 0:00:25]} 25. Qf1 {[%clk 0:00:11]}  Nd4 {[%clk 0:00:19]} 26. Kg2 {[%clk 0:00:03]}  Rc2 {[%clk 0:00:16]} 27. Nb3 {[%clk 0:00:02]}  Nxb3 {[%clk 0:00:13]} 28. Rxb3 {[%clk 0:00:02]}  d4 {[%clk 0:00:13]} 29. Rf3 {[%clk 0:00:02]}  Qd5 {[%clk 0:00:11]} 30. Qe1 {[%clk 0:00:01]}  Rc3 {[%clk 0:00:11]} 31. Qe2 {[%clk 0:00:01]}  Kf8 {[%clk 0:00:05]} 32. Kg3 {[%clk 0:00:01]}  d3 {[%clk 0:00:03]} 0-1